bitfinex-derivatives/quotes_SOLF0:USTF0_20251006
["timestamp","ask_amount","ask_price","bid_price","bid_amount"]
[1759742084832,3.12822259,233.3,233.24,3.8569]
[1759742085129,3.12822259,233.31,233.25,7.4]
[1759742085329,108.00822259,233.31,233.25,7.4]
[1759742085524,104.88,233.31,233.25,7.4]
[1759742085730,3.96,233.32,233.25,7.4]
[1759742085930,104.86,233.31,233.25,7.4]
[1759742086327,3.12926029,233.3,233.25,7.4]
[1759742086534,3.96,233.29,233.25,7.4]
[1759742086837,3.12926029,233.3,233.24,7.4]
[1759742087431,104.86,233.3,233.24,7.4]
[1759742089439,3.13367409,233.29,233.23,3.8571]
[1759742091037,3.13367409,233.29,233.24,7.92]
[1759742091235,3.13367409,233.29,233.23,3.8571]
[1759742091544,3.13367409,233.29,233.2,60.0072]
[1759742091837,25.83367409,233.33,233.21,7.92]
[1759742092036,3.13367409,233.32,233.21,7.92]
[1759742092236,3.13367409,233.32,233.26,3.8566]
[1759742092432,3.13367409,233.31,233.26,3.8566]
[1759742092635,3.13367409,233.32,233.27,7.92]
[1759742092830,3.13367409,233.31,233.26,3.8566]
[1759742093030,3.13367409,233.32,233.27,7.92]
[1759742093228,3.13367409,233.31,233.26,3.8566]
[1759742093529,3.13367409,233.32,233.27,7.92]
[1759742093730,3.13367409,233.31,233.27,7.92]
[1759742093937,3.13367409,233.32,233.26,3.8566]
[1759742094238,3.13367409,233.31,233.27,7.92]
[1759742094430,3.13367409,233.32,233.27,7.92]
[1759742094628,3.13367409,233.31,233.26,3.8566]
[1759742094831,3.13367409,233.32,233.26,3.8566]
[1759742095027,3.13367409,233.31,233.26,3.8566]
[1759742095231,3.13367409,233.32,233.27,7.92]
[1759742095432,3.13367409,233.31,233.26,3.8566]
[1759742095629,3.13367409,233.32,233.26,3.8566]
[1759742095833,3.13367409,233.31,233.27,7.92]
[1759742096137,107.89367409,233.33,233.27,7.92]
[1759742096338,3.13367409,233.32,233.28,7.92]
[1759742096637,3.13367409,233.32,233.27,3.8564]
[1759742096838,3.13367409,233.32,233.28,7.92]
[1759742097030,3.13367409,233.32,233.27,3.8564]
[1759742098934,3.13367409,233.32,233.28,7.92]
[1759742099140,3.13367409,233.32,233.27,3.8564]
[1759742099335,3.13367409,233.32,233.28,7.92]
[1759742099736,104.68,233.32,233.28,7.92]
[1759742099940,108.63,233.32,233.28,7.92]
[1759742100343,3.95,233.3,233.23,7.92]
[1759742100540,104.68,233.29,233.23,7.92]
[1759742100735,3.95,233.27,233.23,7.92]
[1759742101344,3.95,233.27,233.22,3.8573]
[1759742101543,3.95,233.27,233.23,7.92]
[1759742101744,3.95,233.27,233.22,3.8573]
[1759742102042,3.13103295,233.28,233.23,3.8571]
[1759742102342,3.13103295,233.28,233.24,7.92]
[1759742102541,3.13103295,233.28,233.2,60.0092]
[1759742102744,3.95,233.34,233.21,7.92]
[1759742102932,22.12,233.3,233.21,7.92]
[1759742103441,22.12,233.3,233.26,3.8566]
[1759742103637,3.8557,233.33,233.26,3.8566]
[1759742103843,104.7,233.32,233.22,7.92]
[1759742104031,3.130838,233.31,233.22,7.92]
[1759742104437,104.7,233.32,233.22,7.92]
[1759742104739,3.13054718,233.31,233.22,7.92]
[1759742104936,104.7,233.32,233.22,7.92]
[1759742105637,104.7,233.32,233.26,3.8566]
[1759742105942,104.68,233.32,233.26,7.92]
[1759742106244,108.63,233.32,233.25,3.8568]
[1759742106541,3.13004734,233.31,233.25,3.8568]
[1759742107737,3.95,233.3,233.25,3.8568]
[1759742107933,3.95,233.3,233.23,11.7772]
[1759742108540,3.95,233.3,233.23,7.92]
[1759742109644,3.8563,233.29,233.23,7.92]
[1759742110839,3.8568,233.26,233.19,11.7778]
[1759742111043,1.91092738,233.24,233.15,7.92]
[1759742111237,3.95,233.22,233.15,7.92]
[1759742111645,104.78,233.21,233.15,7.92]
[1759742113643,3.95,233.2,233.14,5.65339298]
[1759742113848,3.95,233.2,233.14,13.57339298]
[1759742114643,3.95,233.2,233.15,3.8585]
[1759742114844,3.95,233.2,233.16,7.92]
[1759742115647,3.95,233.2,233.13,3.8588]
[1759742116249,40.21,233.2,233.13,3.8588]
[1759742116850,57.77,233.2,233.13,3.8588]
[1759742117047,57.77,233.2,233.12,7.92]
[1759742119150,57.77,233.2,233.12,11.7789]
[1759742125457,61.6279,233.2,233.12,11.7789]
[1759742125658,3.96,233.19,233.12,11.7789]
[1759742131763,3.96,233.19,233.13,3.8587]
[1759742131959,3.96,233.19,233.14,7.22]
[1759742132158,3.96,233.19,233.13,3.8587]
[1759742132363,3.96,233.19,233.13,11.0787]
[1759742139968,1.91092738,233.2,233.08,7.56]
[1759742140260,5.0285734,233.2,233.08,7.56]
[1759742140461,3.96,233.19,233.08,7.56]
[1759742142264,3.8581,233.18,233.11,11.419]
[1759742145165,3.8583,233.17,233.11,7.56]
[1759742145761,3.8585,233.16,233.11,7.56]
[1759742145966,3.96,233.15,233.11,7.56]
[1759742146168,3.96,233.19,233.11,7.56]
[1759742146371,7.08003169,233.19,233.11,7.56]
[1759742146560,3.8583,233.17,233.11,7.56]
[1759742146759,3.8583,233.17,233.08,3.8596]
[1759742146965,106.59092738,233.2,233.03,7.56]
[1759742146966,3.96,233.15,233.03,7.56]
[1759742147269,1.91092738,233.16,233.03,7.56]
[1759742147469,3.96,233.14,233.03,7.56]
[1759742147665,3.8593,233.11,233.03,11.4204]
[1759742147868,3.96,233.1,232.98,0.74674105]
[1759742148063,3.96,233.1,232.99,7.59]
[1759742148263,3.96,233.09,232.99,7.59]
[1759742148569,20.3,233.09,232.99,7.59]
[1759742148765,3.96,233.09,233.02,7.59]
[1759742148972,3.8593,233.11,233.02,7.59]
[1759742148973,83.62,233.11,233.02,7.59]
[1759742150572,83.62,233.11,233.03,3.8605]
[1759742151369,1.22506812,233.09,233.03,3.8605]
[1759742152172,1.22506812,233.09,233.02,7.59]
[1759742152673,1.22506812,233.09,233.03,3.8605]
[1759742153071,108.96,233.12,233.04,7.59]
[1759742154178,3.13634681,233.11,233.04,7.59]
[1759742156880,3.13634681,233.11,233.06,7.59]
[1759742157074,3.96,233.08,232.95,7.59]
[1759742157281,63.16994681,233.11,232.95,7.59]
[1759742157282,1.22506812,233.04,232.95,7.59]
[1759742157483,1.22506812,233.01,232.95,7.59]
[1759742158382,3.96,232.99,232.95,7.59]
[1759742158775,3.96,232.99,232.89,3.8628]
[1759742158983,1.22506812,232.98,232.9,7.59]
[1759742160276,5.08646812,232.98,232.9,7.59]
[1759742161280,1.22506812,233.01,232.9,7.59]
[1759742161882,3.861,233.0,232.89,7.59]
[1759742162886,3.861,233.0,232.91,3.8623]
[1759742163188,3.861,233.0,232.92,7.59]
[1759742163382,3.8613,232.98,232.92,7.59]
[1759742164682,1.22506812,232.99,232.92,7.59]
[1759742165685,5.08606812,233.0,232.92,7.59]
[1759742166789,3.96,233.01,232.92,11.4522]
[1759742167088,1.22506812,232.99,232.92,11.4522]
[1759742167491,1.22506812,232.99,232.93,7.59]
[1759742168090,1.22506812,232.99,232.93,11.452]
[1759742170090,60.0391,233.09,232.88,1.9721378]
[1759742170091,7.8202,233.05,232.96,7.59]
[1759742170390,47.98506812,233.04,232.96,7.59]
[1759742170590,312.2,233.13,232.96,7.59]
[1759742170893,90.84506812,233.07,232.96,7.59]
[1759742171092,1.22506812,233.07,233.01,7.59]
[1759742171292,5.18506812,233.08,233.01,7.59]
[1759742172291,105.84,233.1,233.01,7.59]
[1759742172592,107.06506812,233.1,233.01,7.59]
[1759742173791,107.06506812,233.1,233.03,3.8603]
[1759742174192,1.22506812,233.1,233.04,11.4502]
[1759742176094,312.2,233.13,233.06,3.8599]
[1759742176294,105.76,233.12,233.06,3.8599]
[1759742176697,417.96,233.13,233.07,11.4497]
[1759742177097,312.2,233.13,233.07,7.59]
[1759742179599,312.2,233.13,233.08,3.8597]
[1759742179799,312.2,233.13,233.09,7.5]
[1759742179997,312.2,233.13,233.08,3.8597]
[1759742180300,316.16,233.13,233.09,7.5]
[1759742180800,312.2,233.13,233.08,3.8597]
[1759742181093,312.2,233.13,233.11,7.5]
[1759742181300,105.76,233.15,233.11,7.5]
[1759742181598,3.96,233.16,233.1,3.8593]
[1759742181799,59.44,233.15,233.11,7.5]
[1759742182203,5.18506812,233.14,233.04,7.5]
[1759742183303,3.96,233.13,233.09,11.3595]
[1759742183501,3.96,233.13,233.1,7.5]
[1759742183703,63.4,233.15,233.1,3.8592]
[1759742183898,63.4,233.15,233.11,7.5]
[1759742184202,109.58,233.18,233.11,7.5]
[1759742184893,109.58,233.18,233.14,7.5]
[1759742185702,3.96,233.17,233.11,11.3592]
[1759742186699,3.96,233.17,233.12,3.8589]
[1759742186997,3.96,233.17,233.13,7.5]
[1759742187198,105.62,233.18,233.08,1.22506812]
[1759742187199,109.478,233.18,233.09,3.8594]
[1759742187501,3.96,233.17,233.09,7.5]
[1759742188602,3.96,233.17,233.11,3.8592]
[1759742190502,5.18506812,233.17,233.11,3.8592]
[1759742190803,3.96,233.16,233.03,7.5]
[1759742191008,3.96,233.1,233.03,7.5]
[1759742191412,20.68,233.12,233.03,7.5]
[1759742191610,20.68,233.12,232.96,67.7929]
[1759742191611,35.6,233.13,233.05,7.5]
[1759742191805,3.96,233.14,233.05,7.5]
[1759742192502,3.96,233.14,233.1,3.8592]
[1759742192806,3.8581,233.18,233.07,7.5]
[1759742192807,34.28,233.15,233.07,7.5]
[1759742193001,3.96,233.17,233.07,7.5]
[1759742193207,3.96,233.17,233.13,11.3588]
[1759742196513,3.96,233.17,233.13,3.8588]
[1759742196713,3.96,233.17,233.14,7.52]
[1759742200410,3.96,233.18,233.1,11.3792]
[1759742200617,1.22506812,233.17,233.1,11.3792]
[1759742201410,1.22506812,233.17,233.11,3.859]
[1759742201916,1.22506812,233.17,233.1,7.52]
[1759742202114,5.08336812,233.17,233.1,7.52]
[1759742202411,3.96,233.16,233.1,7.52]
[1759742204115,3.96,233.16,233.1,11.3792]
[1759742206821,3.96,233.16,233.1,7.52]
[1759742208711,3.96,233.16,233.12,11.5889]
[1759742209923,7.8181,233.18,233.12,7.73]
[1759742213322,7.8181,233.18,233.12,11.5889]
[1759742214226,3.1170797,233.17,233.12,11.5889]
[1759742214420,3.96,233.16,233.12,11.5889]
[1759742215023,3.96,233.16,233.13,7.73]
[1759742216123,3.1170797,233.17,233.13,7.73]
[1759742216323,7.0770797,233.19,233.13,7.73]
[1759742216621,3.1170797,233.18,233.12,11.5889]
[1759742217219,3.1170797,233.17,233.12,11.5889]
[1759742217426,3.96,233.17,233.13,7.73]
[1759742217924,7.0770797,233.17,233.13,7.73]
[1759742218117,3.1170797,233.16,233.12,3.8589]
[1759742218321,3.1170797,233.16,233.13,7.73]
[1759742218826,7.0770797,233.16,233.12,3.8589]
[1759742219027,3.1170797,233.15,233.13,7.73]
[1759742219223,3.96,233.16,233.13,7.73]
[1759742219629,7.0770797,233.16,233.13,7.73]
[1759742219830,3.1170797,233.15,233.13,7.73]
[1759742220027,3.1170797,233.15,233.04,60.05]
[1759742220226,3.96,233.12,233.05,7.73]
[1759742220528,3.1170797,233.11,233.05,7.73]
[1759742220730,3.96,233.09,233.05,7.73]
[1759742221126,3.12310667,233.12,232.99,7.73]
[1759742221326,3.12310667,233.11,232.99,7.73]
[1759742221523,3.12310667,233.1,233.05,3.8601]
[1759742221728,3.12310667,233.12,233.06,7.73]
[1759742221927,3.12310667,233.11,233.05,11.5901]
[1759742222129,7.08310667,233.1,233.06,7.73]
[1759742222329,3.96,233.1,233.06,7.73]
[1759742223026,7.08270181,233.1,233.06,7.73]
[1759742223223,3.96,233.1,233.06,7.73]
[1759742223934,3.96,233.1,233.05,3.8601]
[1759742224135,3.96,233.1,233.06,7.73]
[1759742224834,7.0823974,233.1,233.06,7.73]
[1759742225035,3.96,233.1,233.06,7.73]
[1759742225436,7.08209916,233.1,233.05,3.8601]
[1759742225636,3.12209916,233.09,233.06,7.73]
[1759742225833,3.12209916,233.09,233.05,3.8601]
[1759742226040,3.12209916,233.09,233.06,7.73]
[1759742226238,3.96,233.1,233.06,7.73]
[1759742226437,3.96,233.1,233.05,3.8601]
[1759742226938,3.12209916,233.11,233.06,7.73]
[1759742227139,3.8591,233.12,233.06,7.73]
[1759742227342,6.98119916,233.12,233.06,7.73]
[1759742227544,3.12209916,233.11,233.06,7.73]
[1759742227745,3.12209916,233.13,233.01,60.0555]
[1759742227937,3.12209916,233.13,233.03,61.96488296]
[1759742228137,3.12209916,233.16,233.04,7.73]
[1759742228341,3.12209916,233.15,233.04,7.73]
[1759742228645,3.12209916,233.14,233.04,7.73]
[1759742228845,3.12209916,233.16,233.04,7.73]
[1759742229141,3.12209916,233.15,233.1,3.8592]
[1759742229347,3.12209916,233.16,233.11,7.73]
[1759742229545,3.12209916,233.15,233.11,7.73]
[1759742229741,3.12209916,233.16,233.1,3.8592]
[1759742229940,3.12209916,233.17,233.11,7.73]
[1759742230245,3.12209916,233.17,233.11,11.589]
[1759742230446,3.12209916,233.19,233.11,11.589]
[1759742230738,3.12209916,233.18,233.11,11.589]
[1759742230945,3.12209916,233.17,233.11,11.589]
[1759742231145,3.12209916,233.19,233.11,11.589]
[1759742231349,3.12209916,233.18,233.13,3.8588]
[1759742231647,3.12209916,233.17,233.14,7.73]
[1759742231842,3.12209916,233.19,233.08,7.73]
[1759742232035,3.12209916,233.18,233.08,7.73]
[1759742232239,3.12209916,233.17,233.08,7.73]
[1759742232442,3.12209916,233.19,233.12,3.8588]
[1759742232640,3.12209916,233.18,233.08,7.73]
[1759742232946,3.12209916,233.17,233.08,7.73]
[1759742233240,3.12209916,233.19,233.08,7.73]
[1759742233447,3.96,233.17,233.04,7.73]
[1759742233649,3.12209916,233.16,233.04,7.73]
[1759742233843,3.12209916,233.15,233.04,7.73]
[1759742234146,3.12209916,233.16,233.09,7.73]
[1759742234345,3.12209916,233.15,233.09,7.73]
[1759742234543,3.12209916,233.16,233.09,7.73]
[1759742234845,3.12209916,233.15,233.09,7.73]
[1759742235144,3.12209916,233.16,233.09,7.73]
[1759742235347,3.12209916,233.15,233.09,7.73]
[1759742235547,3.12209916,233.16,233.09,7.73]
[1759742235738,3.12209916,233.15,233.09,7.73]
[1759742235946,3.12209916,233.16,233.09,7.73]
[1759742236244,3.12209916,233.15,233.09,7.73]
[1759742236444,3.12209916,233.16,233.09,7.73]
[1759742236646,3.12209916,233.15,233.09,7.73]
[1759742236845,3.12209916,233.16,233.09,7.73]
[1759742237046,3.12209916,233.15,233.09,7.73]
[1759742237246,3.12209916,233.16,233.09,7.73]
[1759742237447,3.12209916,233.15,233.09,7.73]
[1759742237647,3.12209916,233.16,233.09,7.73]
[1759742237847,3.12209916,233.15,233.09,7.73]
[1759742238049,3.12209916,233.16,233.09,7.73]
[1759742238351,10.94069916,233.15,233.09,7.73]
[1759742238548,3.96,233.13,233.09,7.73]
[1759742238844,3.12209916,233.14,233.09,7.73]
[1759742239050,3.96,233.13,233.09,7.73]
[1759742239746,3.12209916,233.14,233.09,7.73]
[1759742239950,3.96,233.13,233.09,7.73]
[1759742240152,3.12209916,233.14,233.09,7.73]
[1759742240354,3.96,233.13,233.09,7.73]
[1759742241853,3.96,233.13,233.07,11.0697]
[1759742242250,3.96,233.13,233.07,7.21]
[1759742242451,3.12209916,233.12,233.07,7.21]
[1759742242756,3.96,233.11,233.05,7.21]
[1759742243052,3.96,233.16,233.05,7.21]
[1759742243357,1.91308296,233.17,233.05,7.21]
[1759742243358,7.8188,233.14,233.05,7.21]
[1759742243556,3.12209916,233.13,233.05,7.21]
[1759742244554,3.96,233.11,233.05,7.21]
[1759742244749,3.12209916,233.1,232.99,7.21]
[1759742245055,3.12209916,233.09,232.99,7.21]
[1759742245251,3.12209916,233.1,232.99,7.21]
[1759742245655,3.8596,233.09,233.01,7.21]
[1759742246049,3.12209916,233.1,233.01,7.21]
[1759742246558,12.92,233.15,233.02,7.21]
[1759742246746,3.11593617,233.14,233.02,7.21]
[1759742247753,3.11593617,233.14,233.07,7.21]
[1759742249859,3.11593617,233.14,233.07,11.0697]
[1759742251650,3.11593617,233.14,233.09,7.21]
[1759742252150,3.11593617,233.14,233.08,3.8595]
[1759742252357,3.11593617,233.14,233.08,11.0695]
[1759742255456,3.11593617,233.14,233.08,7.21]
[1759742255662,3.11593617,233.13,233.06,7.25]
[1759742255861,3.11593617,233.14,233.06,7.25]
[1759742256058,3.11593617,233.13,233.06,7.25]
[1759742256260,3.11593617,233.14,233.06,7.25]
[1759742256462,3.11593617,233.13,233.06,7.25]
[1759742256764,3.8589,233.13,233.06,7.25]
[1759742256963,6.97483617,233.13,233.06,7.25]
[1759742257165,3.11593617,233.12,233.06,7.25]
[1759742257465,3.8589,233.13,233.06,7.25]
[1759742257666,3.8592,233.11,233.04,7.25]
[1759742261265,6.97513617,233.11,233.04,7.25]
[1759742261472,3.11593617,233.1,233.04,7.25]
[1759742261663,3.8592,233.11,233.04,7.25]
[1759742261863,6.97513617,233.11,233.04,7.25]
[1759742262070,3.11593617,233.1,233.04,7.25]
[1759742262270,3.8592,233.11,233.04,7.25]
[1759742262471,6.97513617,233.11,233.04,7.25]
[1759742262674,3.11593617,233.1,232.99,60.0618]
[1759742262871,3.11593617,233.12,233.02,7.25]
[1759742263071,3.11593617,233.16,233.02,7.25]
[1759742263270,3.11593617,233.15,233.02,7.25]
[1759742263471,3.11593617,233.14,233.08,7.25]
[1759742263670,3.11593617,233.13,233.08,7.25]
[1759742263973,3.11593617,233.16,233.08,7.25]
[1759742264173,3.11593617,233.15,233.08,7.25]
[1759742264366,3.11593617,233.14,233.08,7.25]
[1759742264567,3.11593617,233.13,233.08,7.25]
[1759742264767,3.11593617,233.12,233.08,7.25]
[1759742264972,3.11593617,233.13,233.06,3.8599]
[1759742265173,3.11593617,233.12,233.06,3.8599]
[1759742265372,3.11593617,233.13,233.07,7.25]
[1759742265571,3.11593617,233.12,233.07,7.25]
[1759742265771,3.96,233.12,233.06,3.8599]
[1759742265973,7.07593617,233.12,233.07,7.25]
[1759742266281,3.8588,233.14,233.08,7.25]
[1759742266471,3.12327616,233.13,233.08,7.25]
[1759742266674,3.12327616,233.12,233.08,7.25]
[1759742266873,3.12327616,233.13,233.07,3.8597]
[1759742267173,3.12327616,233.12,233.08,11.1095]
[1759742267479,3.12327616,233.14,233.08,3.8595]
[1759742267775,3.12327616,233.13,233.08,3.8595]
[1759742267976,3.12327616,233.12,233.09,7.4]
[1759742268277,7.08327616,233.14,233.09,7.4]
[1759742268487,3.12327616,233.13,233.08,3.8595]
[1759742268976,3.12327616,233.15,233.09,7.4]
[1759742269177,3.12327616,233.14,233.09,7.4]
[1759742269370,3.12327616,233.13,233.09,7.4]
[1759742269575,3.12327616,233.15,233.09,7.4]
[1759742269774,3.12327616,233.14,233.08,3.8595]
[1759742269978,3.12327616,233.13,233.08,3.8595]
[1759742270174,3.12327616,233.15,233.09,11.2594]
[1759742270473,3.12327616,233.14,233.09,3.8594]
[1759742270669,3.12327616,233.13,233.1,7.4]
[1759742270874,3.12327616,233.15,233.09,3.8594]
[1759742271074,3.12327616,233.14,233.09,3.8594]
[1759742271274,3.12327616,233.15,233.1,7.4]
[1759742271482,3.12327616,233.14,233.1,7.4]
[1759742271681,3.12327616,233.15,233.09,3.8594]
[1759742271875,3.12327616,233.14,233.09,3.8594]
[1759742272078,3.12327616,233.15,233.09,3.8594]
[1759742272376,3.12327616,233.14,233.11,7.4]
[1759742272580,4.34785394,233.2,233.11,7.4]
[1759742272779,3.12327616,233.19,233.11,7.4]
[1759742272973,3.12327616,233.18,233.11,7.4]
[1759742273173,3.12327616,233.17,233.11,7.4]
[1759742273380,3.12327616,233.19,233.13,7.4]
[1759742274781,3.12327616,233.19,233.13,11.2587]
[1759742275780,3.12327616,233.19,233.14,7.4]
[1759742275972,3.12327616,233.19,233.13,3.8587]
[1759742276373,3.12327616,233.19,233.14,7.4]
[1759742276775,3.12327616,233.19,233.13,3.8587]
[1759742277388,7.08327616,233.19,233.13,3.8587]
[1759742277682,7.08327616,233.19,233.14,7.4]
[1759742278073,7.08327616,233.19,233.13,3.8587]
[1759742278273,7.08327616,233.19,233.14,7.4]
[1759742278480,7.08327616,233.19,233.13,3.8587]
[1759742278674,3.12327616,233.19,233.14,11.2585]
[1759742278881,4.34785394,233.2,233.15,7.4]
[1759742279086,4.34785394,233.2,233.14,3.8585]
[1759742279584,3.12327616,233.2,233.14,3.8585]
[1759742279781,3.12327616,233.21,233.15,7.4]
[1759742281779,3.12327616,233.21,233.12,7.4]
[1759742281985,3.12327616,233.24,233.15,7.4]
[1759742282185,3.12327616,233.23,233.15,7.4]
[1759742282386,3.12327616,233.24,233.15,7.4]
[1759742282686,3.12327616,233.23,233.15,7.4]
[1759742282981,3.12327616,233.24,233.15,7.4]
[1759742283186,1.22457778,233.27,233.15,7.4]
[1759742283488,4.30459391,233.27,233.15,7.4]
[1759742284577,3.857,233.25,233.19,7.4]
[1759742285891,3.08001613,233.26,233.19,7.4]
[1759742286588,3.08001613,233.26,233.2,3.8575]
[1759742286894,3.08001613,233.26,233.18,7.4]
[1759742287084,6.93661613,233.27,233.18,7.4]
[1759742287283,6.93661613,233.27,233.21,3.8574]
[1759742287484,3.08001613,233.27,233.22,7.4]
[1759742287783,8.26459391,233.28,233.22,7.4]
[1759742288184,7.04001613,233.28,233.23,3.8571]
[1759742288587,3.08001613,233.28,233.21,7.4]
[1759742288789,3.08001613,233.29,233.25,3.8567]
[1759742288988,3.08001613,233.32,233.24,7.4]
[1759742289293,104.84,233.33,233.24,7.4]
[1759742289995,104.84,233.33,233.3,3.856]
[1759742290196,3.96,233.36,233.3,3.856]
[1759742290197,3.96,233.36,233.31,7.4]
[1759742290398,3.96,233.36,233.3,3.856]
[1759742290595,3.96,233.36,233.3,11.256]
[1759742291694,1.22457778,233.34,233.23,1.22457778]
[1759742291898,3.96,233.33,233.24,7.4]
[1759742292599,3.96,233.33,233.24,11.257]
[1759742294697,3.8558,233.32,233.24,11.257]
[1759742294899,3.96,233.33,233.26,7.4]
[1759742295807,3.96,233.33,233.27,3.8565]
[1759742298307,3.96,233.33,233.26,7.4]
[1759742300810,3.96,233.33,233.26,11.2565]
[1759742301008,4.84753208,233.47,233.2,60.007]
[1759742301009,3.8544,233.4,233.24,59.9968]
[1759742301211,3.8544,233.4,233.22,60.0019]
[1759742301212,3.95,233.39,233.28,7.58]
[1759742301709,3.95,233.39,233.31,7.58]
[1759742302809,3.95,233.39,233.32,3.8556]
[1759742303209,3.95,233.33,233.19,7.58]
[1759742303417,5.17457778,233.29,233.19,7.58]
[1759742303711,1.22457778,233.26,233.19,7.58]
[1759742303912,5.17457778,233.26,233.19,7.58]
[1759742304210,9.03137778,233.26,233.19,7.58]
[1759742304602,5.17457778,233.23,233.13,7.58]
[1759742304805,1.22457778,233.2,233.13,7.58]
[1759742306612,1.22457778,233.2,233.14,3.8586]
[1759742308409,1.22457778,233.2,233.13,7.58]
[1759742308410,3.95,233.27,233.13,60.0253]
[1759742308611,27.61457778,233.27,233.15,7.58]
[1759742309005,45.06457778,233.3,233.23,7.58]
[1759742309915,1.22457778,233.3,233.23,7.58]
[1759742310111,1.22457778,233.3,233.24,3.8568]
[1759742310513,3.95,233.32,233.23,7.58]
[1759742310716,106.12457778,233.34,233.27,3.8565]
[1759742311614,1.22457778,233.34,233.27,3.8565]
[1759742311817,106.12457778,233.34,233.27,3.8565]
[1759742312613,106.12457778,233.34,233.3,7.58]
[1759742312812,106.12457778,233.34,233.29,3.8561]
[1759742312813,1.22457778,233.34,233.29,3.8561]
[1759742313006,311.96,233.36,233.27,7.58]
[1759742313210,3.95,233.39,233.27,7.58]
[1759742313408,1.22457778,233.38,233.31,11.4357]
[1759742314715,3.95,233.39,233.31,7.58]
[1759742315512,3.95,233.39,233.33,3.8555]
[1759742319228,3.95,233.39,233.35,7.21]
[1759742319718,5.17457778,233.4,233.32,3.8557]
[1759742321927,5.17457778,233.4,233.34,3.8553]
[1759742322428,1.22457778,233.41,233.35,7.21]
[1759742324127,1.22457778,233.41,233.36,3.855]
[1759742324327,5.17457778,233.41,233.36,11.065]
[1759742324522,1.22457778,233.41,233.36,3.855]
[1759742324730,1.22457778,233.46,233.4,7.21]
[1759742325022,3.95,233.48,233.4,7.21]
[1759742325023,30.17,233.48,233.4,7.21]
[1759742325327,1.22457778,233.46,233.4,7.21]
[1759742326130,1.22457778,233.46,233.4,11.0642]
[1759742327630,1.22457778,233.46,233.43,7.21]
[1759742327829,3.04596794,233.48,233.42,3.854]
[1759742328021,4.26995469,233.49,233.43,7.42]
[1759742328625,1.22457778,233.49,233.43,7.42]
[1759742330130,1.22457778,233.49,233.43,11.2737]
[1759742330431,1.22457778,233.49,233.43,3.8537]
[1759742330633,3.94,233.47,233.4,7.42]
[1759742330832,5.16457778,233.47,233.4,7.42]
[1759742331032,3.94,233.47,233.4,7.42]
[1759742331732,3.94,233.47,233.4,11.2742]
[1759742332235,3.94,233.47,233.41,3.854]
[1759742332434,106.76836242,233.5,233.4,7.42]
[1759742333033,106.76836242,233.5,233.44,3.8537]
[1759742334639,106.76836242,233.5,233.43,7.42]
[1759742335140,1.90836242,233.5,233.43,7.42]
[1759742335438,104.74,233.49,233.43,7.42]
[1759742336237,104.74,233.49,233.43,11.2737]
[1759742338036,3.94,233.48,233.41,3.8541]
[1759742339733,3.94,233.48,233.42,11.2739]
[1759742342640,3.94,233.46,233.38,7.42]